Workbook

Sheet BUDGET SUMMARY
A1: PROPOSED BUDGET SUMMARY FOR FY2018/2019
A3: REVENUES:
D4: FY 2019 BUDGET | E4: FY 2018 BUDGET | F4: FY 2017 BUDGET | G4: DIFFERENCE
B6: GENERAL FUND | D6: =SUM(REVENUE!B5:B54)+SUM(REVENUE!B60:B81) -> 1976961 | E6: =SUM(REVENUE!C5:C54)+SUM(REVENUE!C60:C81) -> 1772425 | F6: =SUM(REVENUE!D5:D54)+SUM(REVENUE!D60:D81) -> 1990154 | G6: =D6-E6 -> 204536
B7: GAS FUND | D7: =SUM(REVENUE!B95:B102) -> 2042722 | E7: =SUM(REVENUE!C95:C102) -> 2042722 | F7: =SUM(REVENUE!D95:D102) -> 2969081 | G7: =D7-E7 -> 0
B8: W/S FUND | D8: =SUM(REVENUE!B82:B94) -> 1114590 | E8: =SUM(REVENUE!C82:C94) -> 1173190 | F8: =SUM(REVENUE!D82:D93) -> 978705 | G8: -58600
B9: SANITATION FUND | D9: =SUM(REVENUE!B103:B105) -> 440100 | E9: =SUM(REVENUE!C103:C105) -> 440100 | F9: =SUM(REVENUE!D103:D105) -> 435100 | G9: 0
G10: =E10-F10 -> 0
B11: TOTAL REVENUE: | D11: =SUM(D6:D9) -> 5574373 | E11: =SUM(E6:E9) -> 5428437 | F11: =SUM(F6:F9) -> 6373040 | G11: =D11-E11 -> 145936
A14: EXPENDITURES:
B16: GENERAL FUND
C18: LEGISLATIVE | D18: =LEGISLATION!B17 -> 71000 | E18: =LEGISLATION!C17 -> 72800 | F18: =LEGISLATION!D17 -> 72800 | G18: =D18-E18 -> -1800
C19: ADMINISTRATIVE | D19: =ADMINISTRATION!B49 -> 759993 | E19: =ADMINISTRATION!C49 -> 730510 | F19: =ADMINISTRATION!D49 -> 730510 | G19: =D19-E19 -> 29483
C20: MUNICIPAL COURT | D20: ='MUNICIPAL COURT'!B22 -> 165000 | E20: ='MUNICIPAL COURT'!C22 -> 77500 | F20: ='MUNICIPAL COURT'!D22 -> 93500 | G20: 87500
C21: POLICE DEPARTMENT | D21: =POLICE!B35 -> 657100 | E21: =POLICE!C35 -> 616000 | F21: =POLICE!D35 -> 600000 | G21: 41100
C22: FIRE DEPARTMENT | D22: =FIRE!B36 -> 475010 | E22: =FIRE!C36 -> 461900 | F22: =FIRE!D36 -> 461900 | G22: 13110
C23: ANIMAL CONTROL | D23: ='ANIMAL CONTROL'!B18 -> 25470 | E23: ='ANIMAL CONTROL'!C18 -> 25970 | F23: ='ANIMAL CONTROL'!D18 -> 25970 | G23: -500
C24: STREET DEPARTMENT | D24: ='STREET AND LANES'!B42 -> 609280 | E24: ='STREET AND LANES'!C42 -> 613200 | F24: ='STREET AND LANES'!D42 -> 634200 | G24: -3920
C25: SHOP | D25: =SHOP!B27 -> 77200 | E25: =SHOP!C27 -> 74450 | F25: =SHOP!D27 -> 74450 | G25: 2750
G26: 0
C27: TOTAL G/F EXPENDITURES: | D27: =SUM(D18:D25) -> 2840053 | E27: =SUM(E18:E25) -> 2672330 | F27: =SUM(F18:F25) -> 2693330 | G27: 167723
G28: 0
B29: GAS FUND EXPENDITURES | D29: =GAS!B42 -> 1689892 | E29: =GAS!C42 -> 1703462 | F29: =GAS!D42 -> 2698250 | G29: -13570
B30: WATER EXPENDITURES | D30: =WATER!B40 -> 308002 | E30: =WATER!C40 -> 305445 | F30: =WATER!D40 -> 291540 | G30: 2557
B31: SEWER EXPENDITURES | D31: =SEWER!B45 -> 481976 | E31: =SEWER!C45 -> 497600 | F31: =SEWER!D45 -> 441020 | G31: -15624
B32: SANITATION EXPENDITURES | D32: =SANITATION!B34 -> 254450 | E32: =SANITATION!C34 -> 249600 | F32: =SANITATION!D34 -> 248900 | G32: 4850
B35: TOTAL EXPENDITURES: | D35: =SUM(D27:D34) -> 5574373 | E35: =SUM(E27:E34) -> 5428437 | F35: =SUM(F27:F34) -> 6373040 | G35: =D35-E35 -> 145936

Sheet Sheet1

Sheet REVENUE
A1: REVENUE
B2: 2019 | C2: 2018 | D2: 2017
B3: BUDGETED | C3: BUDGETED | D3: BUDGETED
B4: REVENUE | C4: REVENUE | D4: REVENUE
A5: 100-004-00004-00031-311218 1998 PROPERTY TAXES
A6: 100-004-00004-00031-311219 1999 PROPERTY TAXES
A7: 100-004-00004-00031-311220 2000 PROPERTY TAXES
A8: 100-004-00004-00031-311221 2001 PROPERTY TAXES
A9: 100-004-00004-00031-311222 2002 PROPERTY TAXES
A10: 100-004-00004-00031-311223 2003 PROPERTY TAXES
A11: 100-004-00004-00031-311224 2004 PROPERTY TAXES
A12: 100-004-00004-00031-311225 2005 PROPERTY TAXES
A13: 100-004-00004-00031-311226 2006 PROPERTY TAXES
A14: 100-004-00004-00031-311227 2007 PROPERTY TAXES
A15: 100-004-00004-00031-311228 2008 PROPERTY TAXES
A16: 100-004-00004-00031-311229 2009 PROPERTY TAXES
A17: 100-004-00004-00031-311230 2010 PROPERTY TAXES
A18: 100-004-00004-00031-311231 2011 PROPERTY TAXES
A19: 100-004-00004-00031-311232 2012 PROPERTY TAXES
A20: 100-004-00004-00031-311233 2013 PROPERTY TAXES
A21: 100-004-00004-00031-311234 2014 PROPERTY TAXES
A22: 100-004-00004-00031-311235 2015 PROPERTY TAXES
A23: 100-004-00004-00031-311236 2016 PROPERTY TAXES | D23: 267000
A24: 100-004-00004-00031-311236 2017 PROPERTY TAXES | C24: 267000
A25: 100-004-00004-00031-311236 2018 PROPERTY TAXES | B25: 270000
A26: 100-004-00004-00031-311310 MOTOR VEHICLE TAXES | B26: 15000 | C26: 15000 | D26: 15000
A27: 100-004-00004-00031-311311 TAVT TAXES | B27: 60000 | C27: 60000 | D27: 62000
A28: 100-004-00004-00031-311312 AAVT TAXES | D28: 1091
A29: 100-004-00004-00031-311320 MOBILE HOME TAXES | B29: 3000 | C29: 3000 | D29: 3500
A30: 100-004-00004-00031-311340 INTANGIBLE RECORDING TAX | B30: 2000 | C30: 2000 | D30: 2000
A31: 100-004-00004-00031-311350 RAILROAD EQUIPMENT TAX | D31: 2567
A32: 100-004-00004-00031-311600 REAL ESTATE TRANSFER TAX | B32: 1500 | C32: 1000 | D32: 1800
A33: 100-004-00004-00031-311700 FRANCHISE TAX | B33: 50000 | C33: 57000 | D33: 57000
A34: 100-004-00004-00031-311710 FRANCHISE TAX-GA POWER | B34: 135000 | C34: 140000 | D34: 140000
A35: 100-004-00004-00031-311760 FRANCHIS TAX-BELLSOUTH
A36: 100-004-00004-00031-311765 TOWER RENTAL FEE | B36: 30000 | C36: 23300 | D36: 20700
A37: 100-004-00004-00031-313100 LOCAL OPTION SALES TAX | B37: 200000 | C37: 200000 | D37: 200000
A38: 100-004-00004-00031-314100 HOTEL/MOTEL OCCUPANCY | B38: 6500 | C38: 6500 | D38: 6500
A39: 100-004-00004-00031-314200 ALCOHOLIC BEV EXCISE | B39: 85500 | C39: 85500 | D39: 85500
A40: 100-004-00004-00031-316100 BUSINESS LICENSES | B40: 26000 | C40: 26000 | D40: 25000
A41: 100-004-00004-00031-316200 INSURANCE PREMIUM TAX | B41: 180000 | C41: 160000 | D41: 160000
A42: 100-004-00004-00031-316300 FINANCIAL INSTITUTION TAX | B42: 14000 | C42: 10000 | D42: 8076
A43: 100-004-00004-00031-319110 PENALTIES ON DEL TAXES | B43: 10000 | C43: 10000 | D43: 10000
A44: 100-004-00004-00031-319111 INTEREST ON DEL TAXES | B44: 1500 | C44: 1500 | D44: 1500
A45: 100-004-00004-00031-319120 FI FA ON DEL TAXES | B45: 1000 | C45: 1000 | D45: 500
A46: 100-004-00004-00031-319500 FI FA
A47: 100-004-00004-00032-321100 BEER & WINE LICENSES | B47: 6200 | C47: 5800 | D47: 5800
A48: 100-004-00004-00032-323100 BUILDING INSPECTION FEES | B48: 500 | C48: 1500 | D48: 1000
A49: 100-004-00004-00032-324100 PENALTIES ON BUS LICENSES | B49: 100 | C49: 100 | D49: 100
A50: 100-004-00004-00033-331310 DOT-TIA PROJECT | D50: 2885
A51: 100-004-00004-00032-331315 DOT LMIG | B51: 45000 | C51: 42000 | D51: 73000
A52: 100-004-00004-00033-331316 SAFETY GRANT | B52: 6000 | C52: 6000 | D52: 6000
A53: 100-004-00004-00032-334111 STATE OF GA - GEMA REIMB
A54: 100-004-00004-00033-338010 PAYMENTS IN LIEU-HSG | B54: 6000 | C54: 6000 | D54: 6000
A55: REVENUE
B56: 2019 | C56: 2018 | D56: 2017
B57: BUDGETED | C57: BUDGETED | D57: BUDGETED
B58: REVENUE | C58: REVENUE | D58: REVENUE
A60: 100-004-00004-00034-341910 QUALIFYING FEES | B60: 300 | C60: 300 | D60: 300
A61: 100-004-00004-00034-342200 SPECIAL FIRE PROTECTION | B61: 10000 | C61: 15000 | D61: 15000
A62: 100-004-00004-00034-346900 ANSWERING SERVICE FEES
A63: 100-004-00004-00034-346910 E-911 MANAGEMENT FEES | C63: 42000 | D63: 48000
A64: 100-004-00004-00034-346911 E-911 FEES FROM COUNTY | C64: 18000 | D64: 12000
A65: 100-004-00004-00034-349100 CEMETERY FEES | B65: 5000 | C65: 7500 | D65: 5000
A66: 100-004-00004-00034-349300 RETURN CHECK SVC CHARGE | B66: 500 | C66: 500 | D66: 500
A67: 100-004-00004-00035-351170 FEES, FINES & FORFEITURES | B67: 375000 | C67: 250000 | D67: 300000
A68: 100-004-00004-00035-351171 PROBATION FEES | B68: 30000 | C68: 30000 | D68: 30000
A69: 100-004-00004-00035-351175 TECHNOLOGY FEES | B69: 21400 | C69: 10000 | D69: 10000
A70: 100-004-00004-00036-361000 INTEREST INC-INVESTMENTS | B70: 2000 | C70: 2000 | D70: 800
A71: 100-004-00004-00038-380000 COKE FUND | B71: 1500 | C71: 1500 | D71: 1500
A72: 100-004-00004-00038-381000 COMMUNITY HOUSE RENT | B72: 8000 | C72: 8000 | D72: 7000
A73: 100-004-00004-00038-389010 RECOVERY OF BAD DEBT | B73: 100 | C73: 100 | D73: 100
A74: 100-004-00004-00038-389020 MISCELLANEOUS RECEIPTS | B74: 65000 | C74: 60000 | D74: 53457
A75: 100-004-00004-00038-389025 DISCOUNTS TAKEN | B75: 1500 | C75: 1500 | D75: 1000
A76: 100-004-00004-00038-389030 OVER AND SHORT | B76: 50 | C76: 75 | D76: 95
A77: 100-004-00004-00038-389040 EMPLOYEE INSURANCE | B77: 42000 | C77: 42000 | D77: 35000
A78: 100-004-00004-00038-389050 CRIMINAL HISTORIES | B78: 2000 | C78: 4000 | D78: 4000
A79: 100-004-00004-00039-392100 CITY PROPERTY SOLD | B79: 60000 | C79: 5000 | D79: 12000
A80: 100-004-00004-00039-393600 CONTINGENCY FUND | B80: 197811 | C80: 144750 | D80: 289883
A81: 100-004-00004-00040-400000 PROPERTY TAX & ERRORS
A82: 505-004-00004-00034-344210 WATER REVENUE | B82: 488000 | C82: 487800 | D82: 440000
A83: 505-004-00004-00034-344211 WATER PENALTIES | B83: 43000 | C83: 42000 | D83: 40000
A84: 505-004-00004-00034-344212 WATER CONNECTION FEES | B84: 10000 | C84: 10000 | D84: 10000
A85: 505-004-00004-00034-344213 WATER BAD DEBT | B85: 1500 | C85: 1500 | D85: 1500
A86: 505-004-00004-00034-344215 WATER ON/OFF | B86: 500 | C86: 500 | D86: 500
A87: 505-004-00004-00034-344217 MISC-WATER SALES | B87: 1500 | C87: 1500 | D87: 1000
A88: 505-004-00004-00034-344255 SEWER REVENUE | B88: 540000 | C88: 539800 | D88: 485000
A89: 505-004-00004-00034-344257 SEWER CONNECTION FEES | B89: 400 | C89: 400 | D89: 400
A90: 505-004-00004-00034-344258 SEWER BAD DEBT | B90: 100 | C90: 100 | D90: 100
A91: 505-004-00004-00034-344422 CCA REIMBURSEMENTS | B91: 29340 | C91: 29340
A92: 505-004-00004-00034-349300 RETURN CHECK SERVICE | B92: 200 | C92: 200 | D92: 200
A93: 505-004-00004-00036-361000 INTEREST INCOME-INVESTMENTS | B93: 50 | C93: 50 | D93: 5
A94: 505-004-00004-00038-380050 SOLAR POWER SOLD TO GA POWER | C94: 60000
A95: 515-004-00004-00034-344410 GAS REVENUES | B95: 810000 | C95: 810000 | D95: 2500000
A96: 515-004-00004-00034-344411 GAS PENALTIES | B96: 1000 | C96: 1000 | D96: 1000
A97: 515-004-00004-00034-344412 GAS CONNECTION FEES | B97: 1000 | C97: 1000 | D97: 1000
A98: 515-004-00004-00034-344418 MISE-GAS-SALES | B98: 800000 | C98: 800000 | D98: 36359
A99: 515-004-00004-00034-344420 SALES TAX
A100: 515-004-00004-00034-344421 ENERGY EXCISE TAX | B100: 10000 | C100: 10000 | D100: 10000
A101: 515-004-00004-00034-344426 CARBO REIMBURSEMENTS | B101: 420712 | C101: 420712 | D101: 420712
A102: 515-004-00004-00036-361000 INTEREST INC - INVESTMENTS | B102: 10 | C102: 10 | D102: 10
A103: 540-004-00004-00034-344110 SANITATION CHARGES | B103: 440000 | C103: 440000 | D103: 435000
A104: 540-004-00004-00034-344111 SANITATION PENALTIES | B104: 100 | C104: 100 | D104: 100
A105: 540-004-00004-00034-344112 POLYCARTS | B105: 0 | C105: 0
A107: TOTAL REVENUES | B107: =SUM(B5:B54)+SUM(B60:B106) -> 5574373 | C107: =SUM(C5:C54)+SUM(C60:C106) -> 5428437 | D107: =SUM(D5:D54)+SUM(D60:D106) -> 6373040

Sheet LEGISLATION
A1: LEGISLATION
B2: 2019 | C2: 2018 | D2: 2017
B4: BUDGET | C4: BUDGET | D4: BUDGET
A6: 100-101-01110-00051-511100 SALARIES | B6: 19000 | C6: 19000 | D6: 19000
A7: 100-101-01110-00051-512100 EMPLOYEE INSURANCE | B7: 38000 | C7: 38000 | D7: 38000
A8: 100-101-01110-00051-512200 PAYROLL TAXES | B8: 300 | C8: 300 | D8: 300
A9: 100-101-01110-00051-512400 EMPLOYEE RETIREMENT | B9: 1100 | C9: 1000 | D9: 950
A10: 100-101-01110-00052-521200 PROFESSIONAL SERVICES | B10: 800 | C10: 800 | D10: 800
A11: 100-101-01110-00052-523301 ADVERTISING | B11: 300 | C11: 300 | D11: 300
A12: 100-101-01110-00052-523500 TRAVEL | B12: 2500 | C12: 3500 | D12: 3500
A13: 100-101-01110-00052-523700 TRAINING AND EDUCATION | B13: 3000 | C13: 3000 | D13: 3000
A14: 100-101-01110-00057-573401 MISCELLANEOUS | B14: 1000 | C14: 1900 | D14: 1950
A15: 100-101-01400-00053-531111 ELECTIONS EXPENSE | B15: 5000 | C15: 5000 | D15: 5000
A17: TOTAL EXPENDITURE | B17: =SUM(B6:B15) -> 71000 | C17: =SUM(C6:C15) -> 72800 | D17: =SUM(D6:D16) -> 72800

Sheet ADMINISTRATION
A1: ADMINISTRATION
B2: 2019 | C2: 2018 | D2: 2017
B3: BUDGET | C3: BUDGET | D3: BUDGET
A5: 100-102-01510-00051-511100 SALARIES | B5: 322000 | C5: 304000 | D5: 304000
A6: 100-102-01510-00051-511200 TEMPORARY EMPLOYEES | B6: 0 | C6: 4000 | D6: 8000
A7: 100-102-01510-00051-511301 OVERTIME | B7: 1000 | C7: 1000 | D7: 1000
A8: 100-102-01510-00051-512100 EMPLOYEE INSURANCE | B8: 53760 | C8: 50400 | D8: 42000
A9: 100-102-01510-00051-512200 PAYROLL TAXES | B9: 24633 | C9: 23300 | D9: 23300
A10: 100-102-01510-00051-512400 EMPLOYEE RETIREMENT | B10: 14100 | C10: 13200 | D10: 13200
A11: 100-102-01510-00051-512700 WORKERS COMP. INSURANCE | B11: 1000 | C11: 1000 | D11: 1000
A12: 100-102-01510-00051-512710 EMPLOYEE MINOR INJURIES | B12: 5000 | C12: 10000 | D12: 12000
A13: 100-102-01510-00052-521200 PROFESSIONAL SERVICES | B13: 37500 | C13: 37500 | D13: 37500
A14: 100-102-01510-00052-521230 PROF SVCS-ACCT/AUDIT | B14: 40000 | C14: 48000 | D14: 50000
A15: 100-102-01510-00052-521240 S.A.V.E. COMPLIANCE | B15: 300 | C15: 300 | D15: 300
A16: 100-102-01510-00052-521320 DRUG & ALCOHOL TESTING | B16: 500 | C16: 500 | D16: 500
A17: 100-102-01510-00052-522220 REPAIRS & MAINT-VEHICLES | B17: 2000 | C17: 2000 | D17: 1000
A18: 100-102-01510-00052-522230 REPAIRS & MAINT-EQUIPMENT | B18: 4000 | C18: 4000 | D18: 5000
A19: 100-102-01510-00052-522240 SOFTWARE MAINTENANCE | B19: 14750 | C19: 14500 | D19: 13000
A20: 100-102-01510-00052-522241 COMPUTER MAINTENANCE | B20: 7500 | C20: 2500 | D20: 3000
A21: 100-102-01510-00052-522260 LANDSCAPING & GROUNDS | B21: 4500 | C21: 4000 | D21: 3000
A22: 100-102-01510-00052-522310 RENTAL/LEASES | B22: 2000 | C22: 1500 | D22: 1500
A23: 100-102-01510-00052-522320 RENTALS-EQUIPMENT | B23: 500 | C23: 500 | D23: 500
A24: 100-102-01510-00052-523200 COMMUNICATIONS | B24: 14500 | C24: 13000 | D24: 13000
A25: 100-102-01510-00052-523301 ADVERTISING | B25: 3000 | C25: 4000 | D25: 4000
A26: 100-102-01510-00052-523500 TRAVEL | B26: 5000 | C26: 5000 | D26: 5000
A27: 100-102-01510-00052-523610 DUES & SUBSCRIPTIONS | B27: 500 | C27: 500 | D27: 500
A28: 100-102-01510-00052-523700 TRAINING & EDUCATION | B28: 5000 | C28: 5000 | D28: 5000
A29: 100-102-01510-00052-523920 BANK SERVICE CHARGES | B29: 600 | C29: 600 | D29: 600
A30: 100-102-01510-00053-530000 COKE FUND | B30: 1000 | C30: 1000 | D30: 1000
A31: 100-102-01510-00053-531110 OFFICE SUPPLIES | B31: 6250 | C31: 6000 | D31: 7000
A32: 100-102-01510-00053-531120 MAINT & OP SUPPLIES | B32: 6000 | C32: 6000 | D32: 5000
A33: 100-102-01510-00053-531230 UTILITIES | B33: 28000 | C33: 29000 | D33: 29000
A34: 100-102-01510-00053-531270 VEHICLE GASOLINE | B34: 2500 | C34: 2500 | D34: 2500
A35: 100-102-01510-00053-531401 BOOKS AND PERIODICALS | B35: 500 | C35: 500 | D35: 500
A36: 100-102-01510-00053-531720 UNIFORMS | B36: 750 | C36: 750 | D36: 60
A37: 100-102-01510-00053-531730 MISCELLANEOUS | B37: 7500 | C37: 7500 | D37: 5000
A38: 100-102-01510-00053-531732 REIMBURSEMENT/JC/AUTHORITY | B38: 1000 | C38: 1000 | D38: 1000
A39: 100-102-01510-00054-542000 CAP OUTLAY-MACH/EQUIP | B39: 5000 | C39: 3500 | D39: 3500
A40: 100-102-01510-00057-579000 CONTINGENCY | B40: 23850 | C40: 23810 | D40: 24400
A41: 100-102-01510-00057-579100 ADMIN/GRANT/BETTER HT | B41: 18000 | C41: 12050 | D41: 12050
A42: 100-102-01510-00057-579105 DOWNTOWN DEV AUTH FUNDING | B42: 9400
A43: 100-102-01510-00058-582320 INTEREST EXPENSE
A44: 100-102-01510-00058-582325 PRINCIPAL PAYMENTS
A45: 100-102-01545-00031-319500 FI FA | B45: 1600 | C45: 1600 | D45: 1600
A46: 100-102-01555-00052-523100 LIABILITY & PROP INSURANCE | B46: 60000 | C46: 60000 | D46: 60000
A47: 100-102-01565-00052-522210 REPAIRS & MAINT-BUILDING | B47: 25000 | C47: 25000 | D47: 30000
A49: TOTAL EXPENDITURE | B49: =SUM(B5:B47) -> 759993 | C49: =SUM(C5:C47) -> 730510 | D49: =SUM(D5:D47) -> 730510

Sheet MUNICIPAL COURT
A1: MUNICIPAL COURT
B2: 2019 | C2: 2018 | D2: 2017
B4: BUDGET | C4: BUDGET | D4: BUDGET
A6: 100-104-02650-00051-511100 SALARIES | C6: 6000 | D6: 4500
A7: 100-104-02650-00051-512100 EMPLOYEE INSURANCE
A8: 100-104-02650-00051-512200 PAYROLL TAXES | C8: 500 | D8: 300
A9: 100-104-02650-00051-512700 WORKERS COMP INSURANCE | C9: 200 | D9: 400
A10: 100-104-02650-00052-521200 PROFESSIONAL SERVICES | B10: 24000 | C10: 15000 | D10: 8800
A11: 100-104-02650-00052-522240 SOFTWARE MAINTENANCE | B11: 13200 | C11: 0 | D11: 0
A12: 100-104-02650-00052-523200 COMMUNICATIONS | B12: 100 | C12: 100 | D12: 100
A13: 100-104-02650-00052-523500 TRAVEL | B13: 500 | C13: 500 | D13: 500
A14: 100-104-02650-00052-523610 DUES AND SUBSCRIPTIONS | B14: 100 | C14: 100 | D14: 100
A15: 100-104-02650-00052-523700 TRAINING AND EDUCATION | B15: 500 | C15: 500 | D15: 200
A16: 100-104-02650-00053-531110 OFFICE SUPPLIES | B16: 100 | C16: 100 | D16: 100
A17: 100-104-02650-00057-572035 GSCCCA | B17: 80000 | C17: 35000 | D17: 50000
A18: 100-104-02650-00057-572110 STATE MANDATED FEES | B18: 45000 | C18: 16000 | D18: 25000
A19: 100-104-02650-00057-572120 COURT COSTS | B19: 500 | C19: 500 | D19: 500
A20: 100-104-02650-00057-579000 CONTINGENCY | B20: 1000 | C20: 3000 | D20: 3000
A22: TOTAL EXPENDITURE | B22: =SUM(B5:B20) -> 165000 | C22: =SUM(C5:C20) -> 77500 | D22: =SUM(D6:D20) -> 93500

Sheet POLICE
A1: POLICE
B2: 2019 | C2: 2018 | D2: 2017
B4: BUDGET | C4: BUDGET | D4: BUDGET
A6: 100-105-03200-00051-511100 SALARIES | B6: 362100 | C6: 355000 | D6: 337600
A7: 100-105-03200-00051-511301 OVERTIME | B7: 15000 | C7: 14000 | D7: 16000
A8: 100-105-03200-00051-512100 EMPLOYEE INSURANCE | B8: 67200 | C8: 63000 | D8: 51500
A9: 100-105-03200-00051-512200 PAYROLL TAXES | B9: 6500 | C9: 8500 | D9: 7000
A10: 100-105-03200-00051-512400 EMPLOYEE RETIREMENT | B10: 22000 | C10: 21200 | D10: 20000
A11: 100-105-03200-00051-512700 WORKERS COMP INSURANCE | B11: 12000 | C11: 12000 | D11: 10000
A12: 100-105-03200-00052-521320 DRUG & ALCOHOL TESTING | B12: 400 | C12: 400 | D12: 500
A13: 100-105-03200-00052-522210 REPAIRS & MAINT-BLDG | B13: 1000 | C13: 900 | D13: 900
A14: 100-105-03200-00052-522220 REPAIRS & MAINT-VEHICLES | B14: 10000 | C14: 7000 | D14: 15000
A15: 100-105-03200-00052-522230 REPAIRS & MAINT-EQUIPMENT | B15: 2000 | C15: 1500 | D15: 2000
A16: 100-105-03200-00052-522240 SOFTWARE MAINTENANCE | B16: 400 | C16: 400 | D16: 500
A17: 100-105-03200-00052-523200 COMMUNICATIONS | B17: 3500 | C17: 3000 | D17: 4000
A18: 100-105-03200-00052-523301 ADVERTISING | B18: 300 | C18: 300 | D18: 500
A19: 100-105-03200-00052-523500 TRAVEL | B19: 3500 | C19: 3500 | D19: 3500
A20: 100-105-03200-00052-523610 DUES & SUBSCRIPTIONS | B20: 300 | C20: 300 | D20: 500
A21: 100-105-03200-00052-523700 TRAINING & EDUCATION | B21: 1000 | C21: 1000 | D21: 1500
A22: 100-105-03200-00052-523710 TECHNOLOGY FUND | B22: 20500 | C22: 20000 | D22: 20000
A23: 100-105-03200-00053-531110 OFFICE SUPPLIES | B23: 2000 | C23: 1000 | D23: 1500
A24: 100-105-03200-00053-531120 MAINT & OPS SUPPLIES | B24: 1500 | C24: 1500 | D24: 2000
A25: 100-105-03200-00053-531270 VEHICLE GASOLINE | B25: 31500 | C25: 26000 | D25: 25000
A26: 100-105-03200-00053-531720 UNIFORMS | B26: 6500 | C26: 6000 | D26: 6000
A27: 100-105-03200-00053-531730 MISCELLANEOUS | B27: 7000 | C27: 7000 | D27: 6360
A28: 100-105-03200-00054-540000 CAPITAL OUTLAY-SAFETY GRANT | D28: 3640
A29: 100-105-03200-00054-542000 CAPITAL OUTLAY MACH/EQUIP | B29: 50000 | C29: 30000 | D29: 30000
A30: 100-105-03200-00057-572030 PEACE OFFICERS' ANNUITY | B30: 2400 | C30: 2000 | D30: 2600
A31: 100-105-03200-00057-579000 CONTINGENCIES | B31: 20000 | C31: 20000 | D31: 22400
A32: 100-105-03226-00052-523940 PRISONER MEDICAL CARE | B32: 2000 | C32: 2000 | D32: 1500
A33: 100-105-03226-00052-523941 INMATE HOUSING AND FOOD | B33: 6500 | C33: 8500 | D33: 8000
A35: TOTAL EXPENDITURE | B35: =SUM(B6:B33) -> 657100 | C35: =SUM(C6:C33) -> 616000 | D35: =SUM(D6:D33) -> 600000

Sheet FIRE
A1: FIRE
B2: 2019 | C2: 2018 | D2: 2017
B4: BUDGET | C4: BUDGET | D4: BUDGET
A6: 100-106-03500-00051-511100 SALARIES | B6: 303000 | C6: 297000 | D6: 291000
A7: 100-106-03500-00051-511110 SALARIES-VOL FIREMEN | B7: 27000 | C7: 26000 | D7: 26000
A8: 100-106-03500-00051-511301 OVERTIME | B8: 12000 | C8: 12000 | D8: 9500
A9: 100-106-03500-00051-512100 EMPLOYEE INSURANCE | B9: 53760 | C9: 56700 | D9: 47000
A10: 100-106-03500-00051-512101 FIREFIGHTER CANCER INSURANCE | B10: 4100
A11: 100-106-03500-00051-512200 PAYROLL TAXES | B11: 7000 | C11: 6000 | D11: 6000
A12: 100-106-03500-00051-512400 EMPLOYEE RETIREMENT | B12: 16800 | C12: 15600 | D12: 14700
A13: 1001-06-03500-00051-512700 WORKERS COMP. INSURANCE | B13: 7500 | C13: 8500 | D13: 12000
A14: 100-106-03500-00052-521320 DRUG & ALCOHOL TESTING | B14: 650 | C14: 400 | D14: 500
A15: 100-106-03500-00052-522210 REPAIRS & MAINT-BLDG | B15: 1000 | C15: 1000 | D15: 2000
A16: 100-106-03500-00052-522220 REPAIRS & MAINT-VEHICLE | B16: 3500 | C16: 5000 | D16: 4000
A17: 100-106-03500-00052-522230 REPAIRS & MAINT-EQUIP | B17: 6500 | C17: 6500 | D17: 3500
A18: 100-106-03500-00052-522240 SOFTWARE MAINTENANCE | B18: 300 | C18: 300 | D18: 300
A19: 100-106-03500-00052-522241 COMPUTER MAINTENANCE | B19: 2700 | C19: 500 | D19: 2000
A20: 100-106-03500-00052-523200 COMMUNICATIONS | B20: 1500 | C20: 1500 | D20: 2000
A21: 100-106-03500-00052-523301 ADVERTISING | B21: 200 | C21: 200 | D21: 200
A22: 100-106-03500-00052-523500 TRAVEL | B22: 1000 | C22: 1000 | D22: 1500
A23: 100-106-03500-00052-523610 DUES & SUBSCRIPTIONS | B23: 100 | C23: 100 | D23: 100
A24: 100-106-03500-00052-523700 TRAINING & EDUCATION | B24: 1000 | C24: 1000 | D24: 500
A25: 100-106-03500-00053-531110 OFFICE SUPPLIES | B25: 400 | C25: 400 | D25: 600
A26: 100-106-03500-00053-531120 MAINT & OPERATING | B26: 500 | C26: 500 | D26: 1000
A27: 100-106-03500-00053-531130 CHEMICALS | B27: 200 | C27: 100 | D27: 100
A28: 100-106-03500-00053-531270 VEHICLE GASOLINE | B28: 1500 | C28: 1000 | D28: 3000
A29: 100-106-03500-00053-531720 UNIFORMS | B29: 5000 | C29: 4000 | D29: 3000
A30: 100-106-03500-00053-531730 MISCELLANEOUS | B30: 5000 | C30: 5000 | D30: 8000
A31: 100-106-03500-00054-540000 CAPITAL OUTLAY SAFETY GRANT | C31: 0
A32: 100-106-03500-00054-542000 CAPITAL OUTLAY | B32: 8000 | C32: 5900 | D32: 18000
A33: 100-106-03500-00057-572020 PENSION FUND | B33: 1800 | C33: 2700 | D33: 2400
A34: 100-106-03500-00057-579000 CONTINGENCIES | B34: 3000 | C34: 3000 | D34: 3000
A36: TOTAL EXPENDITURE | B36: =SUM(B6:B34) -> 475010 | C36: =SUM(C6:C34) -> 461900 | D36: =SUM(D6:D35) -> 461900

Sheet ANIMAL CONTROL
A1: ANIMAL CONTROL
B2: 2019 | C2: 2018 | D2: 2017
B4: BUDGET | C4: BUDGET | D4: BUDGET
A6: 100-107-03910-00051-511100 SALARIES | B6: 7800 | C6: 7800 | D6: 7800
A7: 100-107-03910-00051-512200 PAYROLL TAXES | B7: 650 | C7: 650 | D7: 650
A8: 100-107-03910-00051-512700 WORKERS COMP INSURANCE | B8: 120 | C8: 120 | D8: 120
A9: 100-017-03910-00052-521200 PROFESSIONAL SERVICES | B9: 9000 | C9: 9000 | D9: 9000
A10: 100-107-03910-00052-522210 REPAIRS & MAINT-BUILDING | B10: 2000 | C10: 2000 | D10: 2000
A11: 100-017-03910-00052-522230 REPAIRS & MAINT-EQUIPMENT | B11: 700 | C11: 700 | D11: 200
A12: 100-107-03910-00053-531110 OFFICE SUPPLIES | B12: 200 | C12: 200 | D12: 200
A13: 100-107-03910-00053-531120 MAINT & OPERATING SUPPLIES | B13: 2000 | C13: 2500 | D13: 2000
A14: 100-107-03910-00053-531230 UTILITIES | B14: 1000 | C14: 1000 | D14: 1000
A15: 100-107-03910-00053-531710 ANIMAL FOOD | B15: 1000 | C15: 1000 | D15: 1000
A16: 100-107-03910-00053-531730 MISCELLANEOUS | B16: 1000 | C16: 1000 | D16: 2000
A18: TOTAL EXPENDITURE | B18: =SUM(B6:B16) -> 25470 | C18: =SUM(C6:C16) -> 25970 | D18: =SUM(D6:D17) -> 25970

Sheet STREET AND LANES
A1: STREET AND LANES
B2: 2019 | C2: 2018 | D2: 2017
B4: BUDGET | C4: BUDGET | D4: BUDGET
A6: 100-108-04200-00051-511100 SALARIES | B6: 205600 | C6: 178000 | D6: 172800
A7: 100-108-04200-00051-511301 OVERTIME/PART-TIME | B7: 5000 | C7: 6300 | D7: 6300
A8: 100-108-04200-00051-512100 EMPLOYEE INSURANCE | B8: 60480 | C8: 50400 | D8: 41000
A9: 100-108-04200-00051-512200 PAYROLL TAXES | B9: 15700 | C9: 19350 | D9: 13000
A10: 100-018-04200-00051-512400 EMPLOYEE RETIREMENT | B10: 10000 | C10: 11200 | D10: 8000
A11: 100-108-04200-00051-512700 WORKERS COMP INSURANCE | B11: 16000 | C11: 16000 | D11: 16000
A12: 100-108-04200-00052-521200 PROFESSIONAL SERVICES | B12: 15000 | C12: 15000 | D12: 12000
A13: 100-108-04200-00052-521215 CONTRACTED MAINTENANCE | C13: 42000 | D13: 39731
A14: 100-108-04200-00052-521320 DRUG & ALCOHOL TESTING | B14: 600 | C14: 600 | D14: 600
A15: 100-108-04200-00052-522210 REPAIRS & MAINT-BLDG/GRND | B15: 2500 | C15: 2500 | D15: 2500
A16: 100-108-04200-00052-522220 REPAIRS & MAINT-VEHICLES | B16: 15000 | C16: 15000 | D16: 15000
A17: 100-108-04200-00052-522230 REPAIRS & MAINT-EQUIPMENT | B17: 22000 | C17: 20000 | D17: 20000
A18: 100-108-04200-00052-522240 SOFTWARE MAINTENANCE | B18: 1000 | C18: 1000 | D18: 500
A19: 100-108-04200-00052-522241 COMPUTER MAINTENANCE | B19: 700 | C19: 700 | D19: 700
A20: 100-108-04200-00052-523200 COMMUNICATIONS | B20: 3500 | C20: 2500 | D20: 2500
A21: 100-108-04200-00052-523301 ADVERTISING | B21: 400 | C21: 400 | D21: 400
A22: 100-108-04200-00052-523500 TRAVEL | B22: 100 | C22: 100 | D22: 100
A23: 100-108-04200-00052-523700 TRAINING & EDUCATION | B23: 400 | C23: 400 | D23: 400
A24: 100-108-04200-00053-531110 OFFICE SUPPLIES | B24: 300 | C24: 300 | D24: 300
A25: 100-108-04200-00053-531120 MAINT & OPERATING SUPPLIES | B25: 9000 | C25: 7000 | D25: 7000
A26: 100-108-04200-00053-531140 SMALL TOOLS /MINOR EQUIP | B26: 1000 | C26: 1000 | D26: 1000
A27: 100-108-04200-00053-531151 SUPPLIES-STREET SIGNS | B27: 1500 | C27: 1500 | D27: 1500
A28: 100-108-04200-00053-531152 UTILITIES-STREET LIGHTS/SIGS | B28: 107500 | C28: 107500 | D28: 104731
A29: 100-108-04200-00053-531230 UTILITIES | B29: 3500 | C29: 3500 | D29: 3500
A30: 100-108-04200-00053-531270 VEHICLE GASOLINE | B30: 18000 | C30: 18000 | D30: 18000
A31: 100-108-04200-00053-531720 UNIFORMS | B31: 4500 | C31: 4500 | D31: 4500
A32: 100-108-04200-00053-531730 MISCELLANEOUS | B32: 6000 | C32: 5000 | D32: 9900
A33: 100-108-04200-00054-540000 CAPITAL OUTLAY SAFETY GRANT | D33: 4250
A34: 100-108-04200-00054-540010 DOT LMIG | B34: 45000 | C34: 43000 | D34: 73000
A35: 100-108-04200-00054-541200 CAPITAL OUTLAY IMPROVEMENTS
A36: 100-108-04200-00054-541420 STREET CONSTR/RESURFACE | B36: 5000 | C36: 4200 | D36: 4200
A37: 100-108-04200-00054-541430 SIDEWALKS/CURBS/GUTTERS | B37: 5000 | C37: 8500 | D37: 6500
A38: 100-108-04200-00054-542000 CAPITAL OUTLAY MACH/EQUIP | B38: 25000 | C38: 24750 | D38: 25750
A39: 100-108-04200-00057-579000 CONTINGENCIES | B39: 4000 | C39: 3000 | D39: 3000
A40: 100-108-04200-00058-581300 DEBT SERVICE | D40: 15538
A42: TOTAL EXPENDITURE | B42: =SUM(B6:B40) -> 609280 | C42: =SUM(C6:C40) -> 613200 | D42: =SUM(D6:D41) -> 634200

Sheet SHOP
A1: SHOP
B2: 2019 | C2: 2018 | D2: 2017
B4: BUDGET | C4: BUDGET | D4: BUDGET
A6: 100-109-04900-00051-511100 SALARIES | B6: 48000 | C6: 46900 | D6: 45600
A7: 100-109-04900-00051-512100 EMPLOYEE INSURANCE | B7: 6700 | C7: 6300 | D7: 5600
A8: 100-109-04900-00051-512200 PAYROLL TAXES | B8: 3700 | C8: 3600 | D8: 3500
A9: 100-109-04900-00051-512400 EMPLOYEE RETIREMENT | B9: 2600 | C9: 2400 | D9: 2300
A10: 100-109-04900-00051-512700 WORKERS COMP INSURANCE | B10: 1200 | C10: 1200 | D10: 1200
A11: 100-109-04900-00052-521235 UTILITIES - NATURAL GAS | B11: 500 | C11: 500 | D11: 500
A12: 100-109-04900-00052-521320 DRUG AND ALCOHOL TESTING | B12: 50 | C12: 50 | D12: 50
A13: 100-109-04900-00052-522210 REPAIRS & MAINT-BLDG/GRND | B13: 1000 | C13: 1000 | D13: 2000
A14: 100-109-04900-00052-522220 REPAIRS & MAINT-VEHICLES | B14: 2000 | C14: 2000 | D14: 2000
A15: 100-109-04900-00052-522230 REPAIRS & MAINT-EQUIP | B15: 400 | C15: 400 | D15: 400
A16: 100-109-04900-00052-522241 COMPUTER MAINTENANCE | B16: 1000 | C16: 400 | D16: 400
A17: 100-109-04900-00052-523200 COMMUNICATIONS | B17: 1100 | C17: 1000 | D17: 1000
A18: 100-109-04900-00052-523700 TRAINING & EDUCATION | B18: 100 | C18: 100 | D18: 100
A19: 100-109-04900-00053-531110 OFFICE SUPPLIES | B19: 300 | C19: 300 | D19: 300
A20: 100-109-04900-00053-531120 MAINT & OPERATING SUPPLY | B20: 2000 | C20: 2000 | D20: 1000
A21: 100-109-04900-00053-531230 UTILITIES - ELECTRIC | B21: 3000 | C21: 3000 | D21: 3000
A22: 100-109-04900-00053-531270 VEHICLE GASOLINE | B22: 800 | C22: 800 | D22: 800
A23: 100-109-04900-00053-531720 UNIFORMS | B23: 750 | C23: 500 | D23: 500
A24: 100-109-04900-00053-531730 MISCELLANEOUS | B24: 1000 | C24: 1000 | D24: 3200
A25: 100-109-04900-00054-542000 CAPITAL OUTLAY | B25: 1000 | C25: 1000 | D25: 1000
A27: TOTAL EXPENDITURE | B27: =SUM(B6:B25) -> 77200 | C27: =SUM(C6:C25) -> 74450 | D27: =SUM(D6:D26) -> 74450

Sheet SEWER
A1: SEWER
B2: 2019 | C2: 2018 | D2: 2017
B4: BUDGET | C4: BUDGET | D4: BUDGET
A6: 505-110-04330-00051-511100 SALARIES | B6: 90066 | C6: 88300 | D6: 85700
A7: 505-110-04330-00051-511300 OVERTIME | B7: 500 | C7: 500 | D7: 500
A8: 505-110-04330-00051-512100 EMPLOYEE INSURANCE | B8: 20160 | C8: 19000 | D8: 16000
A9: 505-110-04330-00051-512200 PAYROLL TAXES | B9: 6900 | C9: 6750 | D9: 6600
A10: 505-110-04330-00051-512400 EMPLOYEE RETIREMENT | B10: 5150 | C10: 5000 | D10: 5000
A11: 505-110-04330-00051-512700 WORKERS COMP INSURANCE | B11: 2000 | C11: 2000 | D11: 2000
A12: 505-110-04330-00052-521200 PROFESSIONAL SERVICES | B12: 5000 | C12: 5000 | D12: 5000
A13: 505-110-04330-00052-521210 ENGINEERING FEES | B13: 3000 | C13: 3500 | D13: 3000
A14: 505-110-04330-00052-521310 TECHNICAL SVCS & TESTING | B14: 50000 | C14: 45000 | D14: 44000
A15: 505-110-04330-00052-521320 DRUG & ALCOHOL TESTING | B15: 250 | C15: 200 | D15: 200
A16: 505-110-04330-00052-522210 REPAIRS & MAINT-BUILDING | B16: 1500 | C16: 900 | D16: 900
A17: 505-110-04330-00052-522220 REPAIRS & MAINT-VEHICLES | B17: 1500 | C17: 1200 | D17: 1200
A18: 505-110-04330-00052-522230 REPAIRS & MAINT-EQUIPMENT | B18: 3000 | C18: 3000 | D18: 3000
A19: 505-110-04330-00052-522240 SOFTWARE MAINTENANCE | B19: 1000 | C19: 1000 | D19: 500
A20: 505-110-04300-00052-522241 COMPUTER MAINTENANCE | B20: 1200 | C20: 500 | D20: 500
A21: 505-110-04330-00052-523200 COMMUNICATIONS | B21: 1500 | C21: 1200 | D21: 1200
A22: 505-110-04330-00052-523301 ADVERTISING | B22: 200 | C22: 200 | D22: 200
A23: 505-110-04330-00052-523500 TRAVEL | B23: 1000 | C23: 750 | D23: 400
A24: 505-110-04330-00052-523610 DUES & SUBSCRIPTIONS | B24: 300 | C24: 300 | D24: 300
A25: 505-110-04330-00052-523700 TRAINING & EDUCATION | B25: 700 | C25: 700 | D25: 700
A26: 505-110-04330-00053-531110 OFFICE SUPPLIES | B26: 500 | C26: 500 | D26: 500
A27: 505-110-04330-00053-531120 MAINT & OPERATING-SUPPLIES | B27: 30000 | C27: 35000 | D27: 35000
A28: 505-110-04330-00053-531140 SMALL TOOLS/MINOR EQUIP | B28: 500 | C28: 500 | D28: 500
A29: 505-110-04330-00053-531230 UTILITIES | B29: 44000 | C29: 74000 | D29: 60000
A30: 505-110-04330-00053-531270 VEHICLE GASOLINE | B30: 5000 | C30: 5000 | D30: 5200
A31: 505-110-04330-00053-531720 UNIFORMS | B31: 1200 | C31: 1200 | D31: 1200
A32: 505-110-04330-00053-531730 MISCELLANEOUS | B32: 8500 | C32: 8500 | D32: 9320
A33: 505-110-04330-00054-541200 CAPITAL IMPROVEMENTS | B33: 15000 | C33: 15000 | D33: 3328
A34: 505-110-04330-00054-541210 SEWER CAPITAL IMP SOLAR PANEL
A35: 505-110-04330-00054-540000 CAPITAL OUTLAY SAFETY GRANT | C35: 0
A36: 505-110-04330-00054-542000 CAPITAL OUTLAY-MACH/EQUIP | B36: 10000 | C36: 1400 | D36: 1400
A37: 505-110-04330-00057-574000 BAD DEBT EXPENSE | C37: 1000 | D37: 1000
A38: 505-110-04330-00057-579000 CONTINGENCY | B38: 30000 | C38: 30000 | D38: 30000
A39: 505-110-04330-00058-581310 GEFA PRINCIPAL
A40: 505-110-04330-00058-581311 USDA PRINCIPAL
A41: 505-110-04330-00058-582321 USDA INTEREST | B41: 45000 | C41: 45000 | D41: 45000
A42: 505-110-04330-00058-582322 GEFA INTEREST | B42: 60000 | C42: 60000 | D42: 60000
A43: 505-110-04330-00058-582327 GEFA #3 | B43: 37350 | C43: 35500 | D43: 11672
A45: TOTAL EXPENDITURE | B45: =SUM(B6:B43) -> 481976 | C45: =SUM(C6:C43) -> 497600 | D45: =SUM(D6:D44) -> 441020

Sheet WATER
A1: WATER
B2: 2019 | C2: 2018 | D2: 2017
B4: BUDGET | C4: BUDGET | D4: BUDGET
A6: 505-111-04420-00051-511100 SALARIES | B6: 78642 | C6: 77100 | D6: 74800
A7: 505-111-04420-00051-511300 OVERTIME | B7: 500 | C7: 500 | D7: 500
A8: 505-111-04420-00051-512100 EMPLOYEE INSURANCE | B8: 20160 | C8: 19000 | D8: 16500
A9: 505-111-04420-00051-512200 PAYROLL TAXES | B9: 6100 | C9: 6000 | D9: 6000
A10: 505-111-04420-00051-512400 EMPLOYEE RETIREMENT | B10: 6000 | C10: 5500 | D10: 5000
A11: 505-111-04420-00051-512700 WORKERS COMP INSURANCE | B11: 4000 | C11: 4000 | D11: 4000
A12: 505-111-04420-00052-521200 PROFESSIONAL SERVICES | B12: 46000 | C12: 45000 | D12: 35000
A13: 505-111-04420-00052-521210 ENGINEERING FEES | B13: 4000 | C13: 4000 | D13: 4500
A14: 505-111-04420-00052-521310 TECHNICAL SVCS & TESTING | B14: 25000 | C14: 25000 | D14: 35000
A15: 505-111-04420-00052-521320 DRUG & ALCOHOL TESTING | B15: 200 | C15: 200 | D15: 200
A16: 505-111-04420-00052-522210 REPAIRS & MAINT- BUILDING | B16: 1250 | C16: 1250 | D16: 1000
A17: 505-111-04420-00052-522220 REPAIRS & MAINT- VEHICLES | B17: 2000 | C17: 1600 | D17: 1600
A18: 505-111-04420-00052-522230 REPAIRS & MAINT-EQUIPMENT | B18: 4000 | C18: 4000 | D18: 6000
A19: 505-111-04420-00052-522240 SOFTWARE MAINTENANCE | B19: 1000 | C19: 1000 | D19: 500
A20: 505-111-04420-00052-522241 COMPUTER MAINTENANCE | B20: 1200 | C20: 500 | D20: 500
A21: 505-111-04420-00052-523200 COMMUNICATIONS | B21: 2500 | C21: 2500 | D21: 1500
A22: 505-111-04420-00052-523301 ADVERTISING | B22: 200 | C22: 200 | D22: 200
A23: 505-111-04420-00052-523500 TRAVEL | B23: 500 | C23: 350 | D23: 350
A24: 505-111-04420-00052-523610 DUES & SUBCRIPTIONS | B24: 1250 | C24: 800 | D24: 800
A25: 505-111-04420-00052-523700 TRAINING & EDUCATION | B25: 1000 | C25: 1000 | D25: 1000
A26: 505-111-04420-00053-531110 OFFICE SUPPLIES | B26: 500 | C26: 600 | D26: 600
A27: 505-111-04420-00053-531120 MAINT & OPERATING-SUPPLIES | B27: 35000 | C27: 35000 | D27: 30000
A28: 505-111-04420-00053-531140 SMALL TOOLS/MINOR EQUIP | B28: 500 | C28: 500 | D28: 500
A29: 505-111-04420-00053-531230 UTILITIES | B29: 30000 | C29: 30000 | D29: 35000
A30: 505-111-04420-00053-531270 VEHICLE GASOLINE | B30: 7000 | C30: 8000 | D30: 9700
A31: 505-111-04420-00053-531720 UNIFORMS | B31: 1500 | C31: 1500 | D31: 1500
A32: 505-111-04420-00053-531730 MISCELLANEOUS | B32: 4000 | C32: 4500 | D32: 5000
A33: 505-111-04420-00054-541200 CAP OUTLAY-IMPROVEMENTS | B33: 5000 | C33: 5000 | D33: 3295
A34: 505-111-04420-00054-542000 CAPITAL OUTLAY-MACH/EQUIP | B34: 7500 | C34: 3200 | D34: 3200
A35: 505-111-04420-00057-574000 BAD DEBT EXPENSE | B35: 2500 | C35: 5000 | D35: 2500
A36: 505-111-04420-00057-579000 CONTINGENCY FUND | B36: 3500 | C36: 3500 | D36: 3590
A37: 505-111-04420-00058-581310 PRINCIPAL | D37: 0
A38: 505-111-04420-00058-582324 GEFA #2 | B38: 5500 | C38: 9145 | D38: 1705
A40: TOTAL EXPENDITURE | B40: =SUM(B6:B38) -> 308002 | C40: =SUM(C6:C38) -> 305445 | D40: =SUM(D6:D39) -> 291540

Sheet GAS
A1: GAS
B2: 2019 | C2: 2018 | D2: 2017
B4: BUDGET | C4: BUDGET | D4: BUDGET
A6: 515-112-04700-00051-511100 SALARIES | B6: 98500 | C6: 94500 | D6: 89800
A7: 515-112-04700-00051-511300 OVERTIME | B7: 750 | C7: 750 | D7: 500
A8: 515-112-04700-00051-512100 EMPLOYEE INSURANCE | B8: 26880 | C8: 19000 | D8: 20000
A9: 515-112-04700-00051-512200 PAYROLL TAXES | B9: 7550 | C9: 7150 | D9: 7000
A10: 515-112-04700-00051-512400 EMPLOYEE RETIREMENT | B10: 8850 | C10: 8150 | D10: 7000
A11: 515-112-04700-00051-512700 WORKERS COMP INSURANCE | B11: 4800 | C11: 4800 | D11: 4800
A12: 515-112-04700-00052-521200 PROFESSIONAL SERVICES | B12: 10000 | C12: 13000 | D12: 13350
A13: 515-112-04700-00052-521210 ENGINEERING FEES | B13: 1000 | C13: 1000 | D13: 1000
A14: 515-112-04700-00052-521310 TECHNICAL SVCS & TESTING | B14: 7300 | C14: 7300 | D14: 8000
A15: 515-112-04700-00052-521320 DRUG & ALCOHOL TESTING | B15: 400 | C15: 300 | D15: 300
A16: 515-112-04700-00052-522210 REPAIRS & MAINT-BUILDING | B16: 1200 | C16: 1200 | D16: 1200
A17: 515-112-04700-00052-522220 REPAIRS & MAINT-VEHICLES | B17: 2000 | C17: 2000 | D17: 2200
A18: 515-112-04700-00052-522230 REPAIRS & MAINT-EQUIPMENT | B18: 3000 | C18: 4100 | D18: 4100
A19: 515-112-04700-00052-522240 SOFTWARE MAINTENANCE | B19: 1000 | C19: 1000 | D19: 500
A20: 515-112-04700-00052-522241 COMPUTER MAINTENANCE | B20: 1200 | C20: 500 | D20: 500
A21: 515-112-04700-00052-523200 COMMUNICATIONS | B21: 3600 | C21: 3600 | D21: 3600
A22: 515-112-04700-00052-523301 ADVERTISING | B22: 500 | C22: 500 | D22: 500
A23: 515-112-04700-00052-523500 TRAVEL | B23: 1200 | C23: 1200 | D23: 1200
A24: 515-112-04700-00052-523610 DUES & SUBSCRIPTIONS | B24: 500 | C24: 500 | D24: 500
A25: 515-112-04700-00052-523700 TRAINING & EDUCATION | B25: 1000 | C25: 1500 | D25: 1500
A26: 515-112-04700-00052-523701 GAS INCENTIVE EXPENSE | B26: 2000 | D26: 1650
A27: 515-112-04700-00053-531110 OFFICE SUPPLIES | B27: 500 | C27: 500 | D27: 500
A28: 515-112-04700-00053-531120 MAINT & OPER-SUPPLIES | B28: 18000 | C28: 18000 | D28: 18000
A29: 515-112-04700-00053-531140 SMALL TOOLS/MINOR EQUIP | B29: 750 | C29: 500 | D29: 500
A30: 515-112-04700-00053-531230 UTILITIES | B30: 5000 | C30: 5000 | D30: 4000
A31: 515-112-04700-00053-531270 VEHICLE GASOLINE | B31: 5000 | C31: 5000 | D31: 5000
A32: 515-112-04700-00053-531520 GAS PURCHASES | B32: 1017000 | C32: 1017000 | D32: 2035138
A33: 515-112-04700-00053-531720 UNIFORMS | B33: 1200 | C33: 1200 | D33: 1200
A34: 515-112-04700-00053-531730 MISCELLANEOUS | B34: 1000 | C34: 1000 | D34: 1000
A35: 515-112-04700-00054-541200 CAP OUTLAY-IMPROVEMENTS | B35: 10000 | C35: 10000 | D35: 10000
A36: 515-112-04700-00054-542000 CAPITAL OUTLAY-MACH/EQUIP | B36: 20000 | C36: 40000 | D36: 20000
A37: 515-112-04700-00057-579000 CONTINGENCIES | B37: 12500 | C37: 12500 | D37: 13000
A38: 515-112-04700-00058-581310 MGAG REPAYMENT
A39: 515-112-04700-00058-582320 INTEREST EXPENSE | B39: 280712 | C39: 280712 | D39: 280712
A40: 515-112-04700-00058-582323 INTEREST | B40: 135000 | C40: 140000 | D40: 140000
A42: TOTAL EXPENDITURE | B42: =SUM(B6:B40) -> 1689892 | C42: =SUM(C6:C40) -> 1703462 | D42: =SUM(D6:D41) -> 2698250

Sheet SANITATION
A1: SANITATION
B2: 2019 | C2: 2018 | D2: 2017
B4: BUDGET | C4: BUDGET | D4: BUDGET
A6: 540-113-04300-00051-511100 SALARIES | B6: 119500 | C6: 117000 | D6: 113700
A7: 540-113-04300-00051-511300 OVERTIME | B7: 1200 | C7: 500 | D7: 500
A8: 540-113-04300-00051-512100 EMPLOYEE INSURANCE | B8: 26900 | C8: 25200 | D8: 21000
A9: 540-113-04300-00051-512200 PAYROLL TAXES | B9: 9150 | C9: 8950 | D9: 8300
A10: 540-113-04300-00051-512400 EMPLOYEE RETIREMENT | B10: 8400 | C10: 7950 | D10: 7650
A11: 540-113-04300-00051-512700 WORKERS COMP INSURANCE | B11: 14000 | C11: 14000 | D11: 14000
A12: 540-113-04300-00051-521320 DRUG & ALCOHOL TESING | B12: 400 | C12: 400 | D12: 400
A13: 540-113-04300-00052-521325 EMPLOYEE PHYSICALS | B13: 100 | C13: 100 | D13: 100
A14: 540-113-04300-00052-522220 REPAIRS & MAINT-VEHICLES | B14: 10000 | C14: 10400 | D14: 7400
A15: 540-113-04300-00052-522230 REPAIRS & MAINT-EQUIPMENT | B15: 2000 | C15: 2000 | D15: 4000
A16: 540-113-04300-00052-522240 SOFTWARE MAINTENANCE | B16: 1000 | C16: 1000 | D16: 500
A17: 540-113-04300-00052-522241 COMPUTER MAINTENANCE | B17: 1000 | C17: 500 | D17: 157
A18: 540-113-04300-00052-523200 COMMUNICATIONS | B18: 600 | C18: 600 | D18: 600
A19: 540-113-04300-00052-523301 ADVERTISING | B19: 200 | C19: 300 | D19: 400
A20: 540-113-04300-00052-523500 TRAVEL | D20: 15
A21: 540-113-04300-00052-523700 TRAINING AND EDUCATION
A22: 540-113-04300-00053-531110 OFFICE SUPPLIES | B22: 200 | C22: 200 | D22: 200
A23: 540-113-04300-00053-531120 MAINT & OPER SUPPLIES | B23: 4700 | C23: 3700 | D23: 3500
A24: 540-113-04300-00053-531140 SMALL TOOLS/ MINOR EQUIP | B24: 500 | C24: 500 | D24: 500
A25: 540-113-04300-00053-531270 VEHICLE GASOLINE | B25: 22500 | C25: 21000 | D25: 21000
A26: 540-113-04300-00053-531720 UNIFORMS | B26: 1600 | C26: 1600 | D26: 1600
A27: 540-113-04300-00053-531730 MISCELLANEOUS | B27: 3000 | C27: 3000 | D27: 3828
A28: 540-113-04300-00054-541200 CAP OUTLAY-IMPROVEMENTS | B28: 1000 | C28: 1000 | D28: 1500
A29: 540-113-04300-00054-542000 CAPITAL OUTLAY-MACH/EQUIP | B29: 3000 | C29: 4000 | D29: 5000
A30: 540-113-04300-00054-542012 CAPITAL OUTLAY-POLYCARTS | B30: 12000 | C30: 12700 | D30: 17500
A31: 540-113-04300-00057-571030 LANDFILL FEES | B31: 9000 | C31: 10500 | D31: 13500
A32: 540-113-04300-00057-579000 CONTINGENCIES | B32: 2500 | C32: 2500 | D32: 2050
A34: TOTAL EXPENDITURE | B34: =SUM(B6:B32) -> 254450 | C34: =SUM(C6:C32) -> 249600 | D34: =SUM(D6:D33) -> 248900
